Cogmind - Beta 15 @@@ ROGUE MODE // 2025.05.31 @ 12:48:13 Player: obl-vn Result: Destroyed by as-28309 with Assembled Heavy Rifle Performance ------------- Evolutions (1) 500 Regions Visited (4) 800 Robots Destroyed (28) 140 Value Destroyed (648) 648 Prototype IDs (0) 0 Alien Tech Used (0) 0 Bonus (133) 133 TOTAL SCORE: 2221 Bonus ------- Follower Combat Kills 133 Cogmind --------- Core Integrity 0/400 Matter 245/300 Energy 92/265 System Corruption 11% Temperature Cool (0) Movement Core (350) Ox6 Location -9/Mines Parts ------- > --- POWER (1) -------- Improved Ion Engine > --- PROPULSION (2) --- (None) > --- UTILITY (4) ------ Medium Storage Unit > --- WEAPON (2) ------- Heavy EM Pulse Gun > --- INVENTORY (10) --- (None) Peak State ------------ > --- POWER ------------ Improved Ion Engine > --- PROPULSION ------- Aluminum Leg Aluminum Leg > --- UTILITY ---------- Improved Heat Sink Improved Heat Sink Seismic Detector Core Shielding > --- WEAPON ----------- Heavy EM Pulse Gun Shotgun > --- INVENTORY -------- Improved Ion Engine Light Treads Aluminum Leg Shotgun Grenade Launcher [Rating: 16] Favorites ----------- Power Improved Ion Engine Engine Improved Ion Engine Propulsion Aluminum Leg Treads Light Treads Leg Aluminum Leg Utility Improved Heat Sink Device Improved Heat Sink Storage Medium Storage Unit Protection Core Shielding Weapon Shotgun Energy Gun Heavy EM Pulse Gun Ballistic Gun Shotgun Launcher Grenade Launcher Build | -11 -10 -10 -9 -9 ------- Run | Yrd Mat Min Mat Min Slots Evolved 2 | . . . 2 . Power . | . . . . . Propulsion . | . . . . . Utility 2 | . . . 2 . Weapon . | . . . . . Parts Attached 27 | 7 5 . 9 6 Power 4 | 1 1 . . 2 Engine 4 | 1 1 . . 2 Core . | . . . . . Reactor . | . . . . . Propulsion 7 | 2 1 . 3 1 Treads 4 | . . . 3 1 Leg 3 | 2 1 . . . Wheel . | . . . . . Hover . | . . . . . Flight . | . . . . . Utility 8 | 2 1 . 4 1 Device 4 | 2 1 . 1 . Storage 1 | . . . 1 . Processor . | . . . . . Hackware . | . . . . . Protection 3 | . . . 2 1 Artifact . | . . . . . Weapon 8 | 2 2 . 2 2 Energy Gun 4 | 1 . . 1 2 Energy Cannon . | . . . . . Ballistic Gun 3 | 1 2 . . . Ballistic Cannon . | . . . . . Launcher 1 | . . . 1 . Special Weapon . | . . . . . Impact Weapon . | . . . . . Slashing Weapon . | . . . . . Piercing Weapon . | . . . . . Special Melee Weapon . | . . . . . Unidentified Prototypes . | . . . . . Parts Lost 16 | . . . 1 15 Power 2 | . . . . 2 Propulsion 3 | . . . . 3 Utility 6 | . . . 1 5 Weapon 5 | . . . . 5 Highest Loss Streak 7 | . . . 1 7 To Critical Strikes . | . . . . . Average Backups 5 | 3 4 5 5 6 Power 1 | . . 1 1 1 Propulsion 1 | 1 2 2 1 . Utility . | . . . . 1 Weapon 2 | . 1 2 2 3 Tool/Special . | . . . . . Unused Backups 9 | 1 5 . 3 . Power . | . . . . . Propulsion 4 | . 2 . 2 . Utility 3 | 1 2 . . . Weapon 2 | . 1 . 1 . Tool/Special . | . . . . . Average Slot Usage (%) 94 | . 98 100 94 83 Engine 12 | . 14 14 11 10 Treads 8 | . . . 13 16 Leg 14 | . 27 28 8 . Device 22 | . 27 28 23 8 Storage 2 | . . . 1 11 Protection 9 | . . . 14 16 Energy Gun 4 | . 3 . 2 12 Ballistic Gun 18 | . 24 28 19 4 Peak Build Rating 16 | 7 12 12 16 15 Average Rating 12 | 4 10 12 14 12 On Entrance 9 | . 7 12 12 15 Naked Turns . | . . . . . Heaviest Build 28 | 9 15 15 28 28 Greatest Support 40 | 20 20 20 40 40 Greatest Overweight (x) 6 | . . . 1 6 Average Overweight (x) . | . . . . . Largest Inventory Capacity 10 | 5 5 5 10 10 Average Capacity 6 | 5 5 5 5 10 Most Carried 10 | 5 5 5 10 9 Average Carried 5 | 2 4 5 5 6 Final Capacity 10 | 5 5 5 10 10 Final Carried 9 | 5 5 5 9 . Class Distribution -------------------- 67% | Mutant 32% | Scavenger-Mutant Dominant Class ---------------- Mutant | -10/Materials Mutant | -10/Mines Scavenger-Mutant | -9/Materials Scavenger-Mutant | -9/Mines Resources | -11 -10 -10 -9 -9 ----------- Run | Yrd Mat Min Mat Min Matter Collected 973 | 300 148 . 315 210 Remotely . | . . . . . Salvage Created 970 | 113 211 . 386 260 Parts 56 | 9 9 . 29 9 Haulers Intercepted 2 | . 1 . 1 . Recyclers Shooed 2 | . . . 2 . Parts Field Recycled . | . . . . . Retrieved Matter . | . . . . . Parts Self-Destructed . | . . . . . Prevented . | . . . . . Kills | -11 -10 -10 -9 -9 ------- Run | Yrd Mat Min Mat Min Combat Hostiles Destroyed 34 | 1 4 . 9 20 Guns 25 | 1 4 . 6 14 AOE 9 | . . . 3 6 Classes Destroyed 9 | 3 2 . 3 1 Worker 1 | 1 . . . . Tunneler 3 | 3 . . . . Hauler 2 | . 1 . 1 . Recycler 1 | . . . 1 . Watcher 2 | . 1 . 1 . Swarmer 6 | . . . 3 3 Grunt 10 | 1 4 . 3 2 Sentry 3 | . . . 3 . Assembled 15 | . . . . 15 Best Kill Streak 8 | 4 4 . 4 8 Combat Bots Only 8 | 1 2 . 4 8 Max Kills in Single Turn 2 | 1 2 . 2 2 Gunslinging . | . . . . . Exploded 2 | . . . 2 2 Melee . | . . . . . Uniques/NPCs Destroyed . | . . . . . Combat | -11 -10 -10 -9 -9 -------- Run | Yrd Mat Min Mat Min Hostile Shots Fired 127 | 6 8 . 33 80 Missed 25 | 1 2 . 7 15 Hits 102 | 5 6 . 26 65 Melee 8 | . . . . 8 Projectile 94 | 5 6 . 26 57 AOE 14 | . . . . 14 Critical Strikes 1 | . . . 1 . Part Disruptions 1 | . . . . 1 Damage Taken 1911 | 52 81 . 342 1436 Core 452 | . 38 . 21 393 Absorbed by Shields . | . . . . . Redirected to Shielding 38 | . . . 4 34 Core Remaining (%) 92 | 100 . 84 . . Volleys Fired 93 | 10 12 . 24 47 Largest 2 | 2 2 . 2 2 Hottest 90 | 70 46 . 68 90 Shots Fired 166 | 20 24 . 48 74 Gun 157 | 20 24 . 46 67 Cannon . | . . . . . Launcher 9 | . . . 2 7 Special . | . . . . . Kinetic 105 | 10 24 . 43 28 Thermal 10 | 10 . . . . Explosive 9 | . . . 2 7 Electromagnetic 42 | . . . 3 39 Robot Hit Streak 8 | 3 8 . 7 7 Robot Miss Streak 5 | 5 4 . 2 4 Penetration Max . | . . . . . Secondary Targets 1 | . . . . 1 Max Gunslinging Chain 1 | . . . . 1 Shots Hit Robots 106 | 10 15 . 34 47 Core Hits 81 | 6 12 . 23 40 Critical Kills . | . . . . . Critical Parts Destroyed . | . . . . . Critical Strikes 1 | . . . . 1 Corrupt 1 | . . . . 1 Melee Attacks . | . . . . . Impact . | . . . . . Slashing . | . . . . . Piercing . | . . . . . Sneak Attacks . | . . . . . Combat Hostiles . | . . . . . Follow-up Attacks . | . . . . . Damage Inflicted 2243 | 128 264 . 856 995 Guns 1630 | 128 264 . 591 647 Cannons . | . . . . . Explosions 613 | . . . 265 348 Melee . | . . . . . Ramming . | . . . . . Kinetic 1234 | 68 264 . 559 343 Thermal 60 | 60 . . . . Explosive 613 | . . . 265 348 Electromagnetic 336 | . . . 32 304 Impact . | . . . . . Slashing . | . . . . . Piercing . | . . . . . Highest Corruption 11 | . . . . 11 Average Corruption 10 | . . . . 10 Corruption Purged . | . . . . . Corruption Blocked . | . . . . . Effects 2 | . . . . 2 Matter Fused 1 | . . . . 1 Misdirections 1 | . . . . 1 Overload Shots . | . . . . . Overflow Damage 9 | . . . 4 5 Projectiles . | . . . . . Explosions 9 | . . . 4 5 Melee . | . . . . . Knockbacks . | . . . . . Impact . | . . . . . Kinetic . | . . . . . Secondary . | . . . . . Self-Inflicted Damage 121 | . . . . 121 Shots 6 | . . . . 6 Rammed . | . . . . . Targets Rammed . | . . . . . Kicked . | . . . . . Crushed . | . . . . . Highest Temperature 42 | 42 . . . 25 Average Temperature 14 | 18 . . . 11 Received Heat Transfer 375 | 30 45 . 147 153 Siege Activations . | . . . . . Martial Activations . | . . . . . Shielding Activations . | . . . . . Robots Disrupted . | . . . . . Combat Hostiles . | . . . . . Robots Corrupted 1 | . . . 1 . Combat Hostiles . | . . . . . Parts Fried 1 | . . . 1 . Impact Corruptions . | . . . . . Robots Melted . | . . . . . Combat Hostiles . | . . . . . Parts Melted . | . . . . . Heat Transferred 185 | 185 . . . . Parts Sabotaged . | . . . . . Parts Stolen . | . . . . . Parts Stripped . | . . . . . Power Chain Reactions . | . . . . . Alert | -11 -10 -10 -9 -9 ------- Run | Yrd Mat Min Mat Min Maximum Alert Level . | . . . . . Low Security (%) 100 | 100 100 100 100 100 Level 1 . | . . . . . Level 2 . | . . . . . Level 3 . | . . . . . Level 4 . | . . . . . Level 5 . | . . . . . High Security . | . . . . . Max Security . | . . . . . Peak Influence 146 | 20 50 9 146 95 Initial 19 | . 3 9 . 19 Average 38 | 4 9 . 80 31 Influence Increases 737 | 40 104 . 425 168 Destroy 0b10 Robot/C 480 | 20 80 . 280 100 Destroy 0b10 Robot/NC 55 | 20 10 . 25 . Destroy Leader 108 | . 14 . 74 20 Allied During Kill 28 | . . . 28 . Successful Hack 7 | . . . 7 . Disable Machine 15 | . . . . 15 Destroy Structure 44 | . . . 11 33 Influence Decreases 737 | 35 83 26 374 219 Entered New Map 51 | . 2 17 . 32 Time Decay 535 | 35 81 9 304 106 Lost Part 91 | . . . 10 81 Lost Ally 60 | . . . 60 . Squads Dispatched 1 | . . . 1 . Investigation . | . . . . . Extermination . | . . . . . Reinforcement 1 | . . . 1 . Assault . | . . . . . Garrison . | . . . . . Intercept . | . . . . . Searches Triggered . | . . . . . Construction Impeded 1 | . . . 1 . Haulers Reinforced . | . . . . . Active Scanning Responses . | . . . . . Cargo Convoy Interrupts . | . . . . . Stealth | -11 -10 -10 -9 -9 --------- Run | Yrd Mat Min Mat Min Distress Signals 2 | . . . 2 . Communications Jammed . | . . . . . Distress Signals . | . . . . . Times Spotted 47 | 1 5 . 18 23 Peak Tracking Total 6 | 1 2 . 6 4 Tactical Retreats . | . . . . . Traps | -11 -10 -10 -9 -9 ------- Run | Yrd Mat Min Mat Min Traps Triggered . | . . . . . Indirectly . | . . . . . Trap Hack Attempts . | . . . . . Triggered . | . . . . . Disarmed . | . . . . . Reprogrammed . | . . . . . Reused . | . . . . . Traps Extracted . | . . . . . Installed . | . . . . . Triggered . | . . . . . Machines | -11 -10 -10 -9 -9 ---------- Run | Yrd Mat Min Mat Min Machines Disabled 1 | . . . . 1 Max in Single Turn 1 | . . . . 1 Machines Repaired . | . . . . . Machines Dismantled . | . . . . . Machines Sabotaged . | . . . . . Overloaded Fab Kills . | . . . . . Hacking | -11 -10 -10 -9 -9 --------- Run | Yrd Mat Min Mat Min Machines Accessed 5 | . 3 . 2 . Terminals 5 | . 3 . 2 . Fabricators . | . . . . . Repair Stations . | . . . . . Recycling Units . | . . . . . Scanalyzers . | . . . . . Garrison Access . | . . . . . Total Hacks 9 | . 5 . 4 . Successful 5 | . 1 . 4 . Failed 4 | . 4 . . . Catastrophic 1 | . 1 . . . Database Lockouts . | . . . . . Manual . | . . . . . Terminals 9 | . 5 . 4 . Fabricators . | . . . . . Repair Stations . | . . . . . Recycling Units . | . . . . . Scanalyzers . | . . . . . Garrison Access . | . . . . . Terminal Hacks 5 | . 1 . 4 . Record 3 | . . . 3 . Branch Access Points 1 | . . . 1 . Locate Traps 1 | . 1 . . . Fabricator Hacks . | . . . . . Repair Station Hacks . | . . . . . Recycling Unit Hacks . | . . . . . Scanalyzer . | . . . . . Garrison Access Hacks . | . . . . . Unauthorized Hacks . | . . . . . Terminals . | . . . . . Fabricators . | . . . . . Repair Stations . | . . . . . Recycling Units . | . . . . . Scanalyzers . | . . . . . Garrison Access . | . . . . . Data Cores Recovered . | . . . . . Used . | . . . . . Hacking Detections 3 | . 2 . 1 . Full Trace Events 2 | . 1 . 1 . Feedback Events . | . . . . . Feedback Blocked . | . . . . . Robot Schematics Acquired . | . . . . . Robots Built . | . . . . . Authchips . | . . . . . Time . | . . . . . Total Robot Build Rating . | . . . . . Part Schematics Acquired . | . . . . . Parts Built . | . . . . . Authchips . | . . . . . Time . | . . . . . Total Part Build Rating . | . . . . . Parts Repaired . | . . . . . Time . | . . . . . Parts Recycled . | . . . . . Recycled Matter . | . . . . . Retrieved Matter . | . . . . . Retrieved Components . | . . . . . Parts Scanalyzed . | . . . . . Part Schematics Acquired . | . . . . . Parts Damaged . | . . . . . Bothacking | -11 -10 -10 -9 -9 ------------ Run | Yrd Mat Min Mat Min Used RIF Installer . | . . . . . Robots Hacked . | . . . . . Non-combat . | . . . . . Combat . | . . . . . Robot Hacks Applied . | . . . . . Relay Couplers Released . | . . . . . Fabnet Peak Effective % . | . . . . . Robots Rewired . | . . . . . Allies Hacked . | . . . . . Hacks Repelled . | . . . . . Allies | -11 -10 -10 -9 -9 -------- Run | Yrd Mat Min Mat Min Total Allies 3 | . . 3 . . Largest Group 3 | . . 3 3 . Highest-Rated Group 40 | . . 40 40 . Highest-Rated Ally 16 | . . 16 16 . Total Orders . | . . . . . Ally Attacks 44 | . . . 44 . Total Damage 422 | . . . 422 . Kills 7 | . . . 7 . Allies Corrupted . | . . . . . Allies Melted . | . . . . . Intel | -11 -10 -10 -9 -9 ------- Run | Yrd Mat Min Mat Min Active Infowar (turns) 1186 | 23 394 313 456 . Seismic 1186 | 23 394 313 456 . Robot Analysis Total . | . . . . . Derelict Logs Recovered 2 | . . 1 . 1 Drone Launches . | . . . . . Drone Recoveries . | . . . . . Exploration | -11 -10 -10 -9 -9 ------------- Run | Yrd Mat Min Mat Min Turns Passed 2007 | 155 412 313 756 371 Spaces Moved 1133 | 106 256 254 390 127 Core 36 | 33 . . . 3 Treads 342 | . . . 218 124 Legs 755 | 73 256 254 172 . Wheels . | . . . . . Hover . | . . . . . Flight . | . . . . . Fastest Speed 50 | 50 120 120 120 160 Average Speed 132 | 98 120 120 146 167 Slowest Speed 350 | 120 120 120 190 350 Overloaded Moves . | . . . . . Propulsion Burnouts . | . . . . . Robots Hopped . | . . . . . Potential Cave-ins . | . . . . . Cave-ins Triggered . | . . . . . Exploration Rate (%) 30 | 6 43 52 30 21 Regions Visited 4 Branch Regions 2 Pre-discovered Areas 1 | . . . . 1 Known Exits Taken 1 | . . . 1 . Unknown Exits Taken 3 | 1 1 1 . . Scrap Searched 2 | . . . . 2 Spaces Dug . | . . . . . Terrain Destroyed 73 | . . . 10 63 Melee . | . . . . . Projectile . | . . . . . AOE 73 | . . . 10 63 Terrain Rammed . | . . . . . Walls Destroyed . | . . . . . Machines Disabled . | . . . . . Actions | -11 -10 -10 -9 -9 --------- Run | Yrd Mat Min Mat Min Total 1476 | 137 342 262 527 208 Wait 160 | 1 48 9 81 21 Move 1129 | 105 255 253 389 127 Hop . | . . . . . Pick Up 33 | 13 9 . 11 . Fast Attach 6 | . 1 . 5 . Attach 21 | 7 4 . 1 9 Detach 1 | . 1 . . . Swap 12 | . 1 . 7 4 Drop 21 | 1 11 . 9 . Fire 93 | 10 12 . 24 47 Melee . | . . . . . Ram . | . . . . . Kick . | . . . . . Crush . | . . . . . Escape Stasis . | . . . . . Rewire . | . . . . . Trap . | . . . . . Miscellaneous . | . . . . . Route ------- -11/Scrapyard -10/Materials (discovered 3 exits: [*Min x2] / [*Sub]) -10/Mines -9/Materials (discovered 3 exits: *Min x2 / Sto) -9/Mines (discovered 1 exit: [*Mat]) History --------- Turn | Location | Event 2 | -11/Scrapyard | Met Revision 17 79 | -11/Scrapyard | Discovered new exit (range 8) 156 | -11/Scrapyard | Entered Materials 157 | -10/Materials | Met a group of wandering Federalists 289 | -10/Materials | Discovered new exit (range 8) 315 | -10/Materials | Build established: Mutant 401 | -10/Materials | Discovered new exit (range 14) 424 | -10/Materials | Discovered new exit (range 14) 568 | -10/Materials | Entered Mines 733 | -10/Mines | Learned 2 Materials zone layouts 753 | -10/Mines | Assisted by bots powering up and referring to "LRC-V3" 864 | -10/Mines | Discovered new exit (range 14) 881 | -10/Mines | Entered Materials 881 | -9/Materials | Accompanied by 3 allies 881 | -9/Materials | Evolved 2 slots: Utility x2 882 | -9/Materials | Identified exit to Mines 1159 | -9/Materials | Identified exit to Storage 1467 | -9/Materials | Build established: Scavenger-Mutant 1637 | -9/Materials | Entered Mines 1647 | -9/Mines | Met a Derelict bent on vengeance 1779 | -9/Mines | Discovered new exit (range 8) 1819 | -9/Mines | Assembled infested the area 1876 | -9/Mines | Lost 7 parts (1p1n3u2w) 1956 | -9/Mines | Core integrity fell below 50% 1957 | -9/Mines | Destroyed 7 combat bots 1961 | -9/Mines | System corruption reached 10% 1972 | -9/Mines | Core integrity fell below 20% 2008 | -9/Mines | Destroyed by as-28309 with Assembled Heavy Rifle Last Messages --------------- 01996_ as-70819 misfires. 01998_ The unstable cave ceiling collapses. Want a larger map view with more modal windows? Or have a large enough display to fit a bigger map in exchange for smaller text? Consider selecting a different UI Layout in the option menu. 02001_ as-70819 destroyed. [Achievement: Exterminator] The achievement interface (ESC then open Records) offers an effective way to explore all of your earned achievements as well as seek out new goals for future runs. Important note for Steam players: Cogmind player global achievement rates displayed by Steam are all significantly underreported, in some cases by a huge margin, due to how they are calculated by Valve. 02006_ Imp. Ion Engine destroyed. 02008_ System corrupted: Matter fused (-6). Map ----- +----------------------------------------------------+ | ????????????????????????????????????? | | ????????????????????????????????????? | | ????????????????????????????????????? | | ????????????????????????????????????? | | ????????????????????????????????????? | | ????????????????????????????????????? | | ????????????????????????????????????? | | ????????????????????????????????????? | | ????????????????????????????????????? | | ????????????????????????????????????? | | ????????????????????????????????????? | | ????????????????????????????????????? | | ????????????????????????????????????? | | ????????????????????????????????????? | | ????????????????????????????????????? | | ????????????????????????????????????? | | ????????????????????????????????????? | | ????????????????????????###?????????? | | ???????????????????????? #?????????? | | ????????????????????????#a##????????? | | ????????????????????##### #????????? | | ????????????????????# #????????? | | ???????????????????## #????????? | | ???????????????????# ###??????? | | ???????????????????# %%## #??????? | | ???????????????????# @ ##?????? | | ???????????????????### # ##????? | | ?????????????????????## #????? | | ??????????????????????# # #????? | | ??????????????????????# # ## #????? | | ??????????????????????####### #????? | | ????????????????????????????# #????? | | ?????????????????????????#### ##???? | | ????????????????????????## # ###?? | | ???????????????????????## # # ##? | | ?????????????????????### #? | | ?????????????????????# # #? | | ?????????????????????# #? | | ??????????????????## # #? | | ??????????????????# # ### ##? | | ??????????????????# # ##?? | | ??????????????????# ###??? | | ????????????????? # ### ##????? | | ???????????????# ####### # #?????? | | ???????????????#??????## ## #?????? | | ???????????????????????#### ##????? | | ????????????????????????# #????? | | ??????????????????###???# ##????? | | ??????????????????# #?## ##????? | | ??????????????????# ## ##????? | +----------------------------------------------------+ Best States ------------- Heat Dissipation 56 Energy Generation 12 Energy Capacity 265 Matter Stores 300 Matter Capacity 300 Sight Range 16 Terrain Scan Density 10 Armor Coverage 150 Core Shielding 20 Evasion (%) 55 Recoil Reduction 2 Item Schematics ----------------- None Robot Schematics ------------------ None Fabricated ------------ Nothing Repaired ---------- Nothing Alien Tech Used ----------------- None Achievements -------------- Exterminator Challenges ------------ None Game ------ Seed HybridRocketGravjet Manual? 0 Play Time 00:44:56 Cumulative 54.4 hours Start 2025.05.31 @ 11:58:41 End 2025.05.31 @ 12:48:13 Sessions 1 Manual Loads 0 Difficulty Rogue Special Mode None Game No. 42 Rogue 42 Adventurer 0 Explorer 0 Win Type - Total 1 Types 0/0/0/1/0/0/0/0/0/0 Lore% 20 Gallery% 33 Achievement% 39 Wizard Run 0 Options --------- Layout 1 ASCII 0 Keyboard 0 Movement Mouse Keybinds 0 Fullscreen 1 Font 24/Smallcaps Map View 50x35 Zoom Use 0% Tactical HUD 1 Map Filters NONE Filters NONE Steam 1 RUN: 785f1c01-a0ae-47e0-90ee-7d54c993f08f